fUST/lending_fUST_20250205
["ID","MTS","AMOUNT","RATE_DAILY","PERIOD"]
[351728566,1738768247911,-190.0,0.00015564,2]
[351728567,1738768247926,-190.0,0.00015564,2]
[351728568,1738768247937,-190.0,0.00015564,2]
[351728569,1738768247948,-190.0,0.00015564,2]
[351728570,1738768247958,-190.0,0.00015564,2]
[351728571,1738768247969,-190.0,0.00015564,2]
[351728572,1738768247980,-190.0,0.00015564,2]
[351728573,1738768247990,-190.0,0.00015564,2]
[351728574,1738768248001,-190.0,0.00015564,2]
[351728575,1738768248012,-190.0,0.00015564,2]
[351728576,1738768248023,-190.0,0.00015564,2]
[351728577,1738768248253,-190.0,0.00015564,2]
[351728578,1738768248266,-190.0,0.00015564,2]
[351728579,1738768248277,-190.0,0.00015564,2]
[351728580,1738768248288,-189.0,0.00015564,2]
[351728581,1738768248301,-189.0,0.00015564,2]
[351728582,1738768248312,-189.0,0.00015564,2]
[351728583,1738768248322,-189.0,0.00015564,2]
[351728584,1738768248334,-189.0,0.00015564,2]
[351728585,1738768248346,-189.0,0.00015564,2]
[351728586,1738768248358,-189.0,0.00015564,2]
[351728587,1738768248368,-189.0,0.00015564,2]
[351728588,1738768248379,-189.0,0.00015564,2]
[351728589,1738768248391,-189.0,0.00015564,2]
[351728590,1738768248402,-189.0,0.00015564,2]
[351728591,1738768248414,-189.0,0.00015564,2]
[351728592,1738768248425,-189.0,0.00015564,2]
[351728593,1738768248437,-189.0,0.00015564,2]
[351728594,1738768248448,-190.0,0.00015565,2]
[351728595,1738768248458,-190.0,0.00015565,2]
[351728596,1738768248468,-190.0,0.00015565,2]
[351728597,1738768248479,-190.0,0.00015565,2]
[351728598,1738768248490,-190.0,0.00015565,2]
[351728599,1738768248500,-190.0,0.00015565,2]
[351728600,1738768248511,-190.0,0.00015565,2]
[351728601,1738768248522,-190.0,0.00015565,2]
[351728602,1738768248532,-190.0,0.00015565,2]
[351728603,1738768248543,-190.0,0.00015565,2]
[351728604,1738768248553,-190.0,0.00015565,2]
[351728605,1738768248563,-189.0,0.00015565,2]
[351728606,1738768248574,-189.0,0.00015565,2]
[351728607,1738768248586,-189.0,0.00015565,2]
[351728608,1738768248596,-189.0,0.00015565,2]
[351728609,1738768248610,-151.0,0.00015565,2]
[351728610,1738768248622,-151.0,0.00015565,2]
[351728611,1738768248633,-500.0,0.00015594,2]
[351728612,1738768248644,-500.0,0.00015594,2]
[351728613,1738768248655,-500.0,0.00015594,2]
[351728614,1738768248666,-215.526094,0.00015594,2]
[351728615,1738768248676,-215.526094,0.00015594,2]
[351728616,1738768248687,-530.23,0.00015594,2]
[351728617,1738768248698,-759.37,0.00015594,2]
[351728618,1738768248711,-500.0,0.00015594,2]
[351728619,1738768248722,-557.14,0.00015594,2]
[351728620,1738768248734,-1736.32,0.00015594,2]
[351728621,1738768248744,-500.0,0.00015594,2]
[351728622,1738768248754,-970.92,0.00015594,2]
[351728623,1738768248765,-2257.67,0.00015594,2]
[351728624,1738768248776,-500.0,0.00015594,2]
[351728625,1738768248787,-500.0,0.00015594,2]
[351728626,1738768248799,-676.27,0.00015594,2]
[351728627,1738768248810,-1086.68,0.00015594,2]
[351728628,1738768248823,-571.08,0.00015594,2]
[351728629,1738768248835,-1140.96,0.00015594,2]
[351728630,1738768248848,-500.0,0.00015594,2]
[351728631,1738768248862,-3886.78,0.00015594,2]
[351728632,1738768248874,-500.0,0.00015594,2]
[351728633,1738768248884,-500.0,0.00015594,2]
[351728634,1738768248897,-4190.82,0.00015594,2]
[351728635,1738768248908,-151.0,0.00015594,2]
[351728636,1738768248918,-500.0,0.00015594,2]
[351728637,1738768248929,-500.0,0.00015594,2]
[351728638,1738768248941,-827.02,0.00015594,2]
[351728639,1738768248952,-1127.0,0.00015594,2]
[351728640,1738768248965,-1108.5,0.00015594,2]
[351728641,1738768248976,-500.0,0.00015594,2]
[351728642,1738768248988,-35055.38,0.00015594,2]
[351728643,1738768248998,-151.0,0.00015594,2]
[351728644,1738768249009,-2991.92,0.00015594,2]
[351728645,1738768249019,-1210.39,0.00015594,2]
[351728646,1738768249030,-500.0,0.00015594,2]
[351728647,1738768249041,-500.0,0.00015594,2]
[351728648,1738768249051,-151.0,0.00015594,2]
[351728649,1738768249062,-151.0,0.00015594,2]
[351728650,1738768249073,-151.0,0.00015594,2]
[351728651,1738768249084,-629.72,0.00015595,2]
[351728652,1738768249096,-500.0,0.00015595,2]
[351728653,1738768249107,-215.526094,0.00015595,2]
[351728654,1738768249118,-215.526094,0.00015595,2]
[351728655,1738768249128,-222.15928418,0.00015595,2]
[351728656,1738768249140,-151.0,0.00015595,2]
[351728657,1738768249151,-151.0,0.00015595,2]
[351728658,1738768249162,-500.0,0.00015595,2]
[351728659,1738768249172,-500.0,0.00015595,2]
[351728660,1738768249184,-800.0,0.00015595,2]
[351728661,1738768249194,-340.5020482,0.00015595,2]
[351728662,1738768249205,-500.0,0.00015595,2]
[351728663,1738768249215,-500.0,0.00015595,2]
[351728664,1738768249226,-500.0,0.00015595,2]
[351728665,1738768249237,-500.0,0.00015595,2]
[351728666,1738768249248,-701.06,0.00015595,2]
[351728667,1738768249260,-500.0,0.00015595,2]
[351728668,1738768249271,-109.02298228,0.00015595,2]
[351728669,1738768249650,-579.938,0.00015595,2]
[351728670,1738768249960,-322.90671414,0.0001536,2]
[351728671,1738768249972,-177.09328586,0.0001536,2]
[351728672,1738768249982,-500.0,0.0001536,2]
[351728673,1738768249991,-22.76945081,0.0001536,2]
[351728674,1738768250092,-477.23054919,0.0001536,2]
[351728675,1738768250102,-500.0,0.00015497,2]
[351728676,1738768250116,-500.0,0.00015497,2]
[351728677,1738768250128,-698.45901772,0.00015595,2]
[351728678,1738768250137,-217.90447357,0.00015595,2]
[351728679,1738768250652,-500.0,0.0001536,2]
[351728680,1738768250662,-500.0,0.0001536,2]
[351728681,1738768250672,-381.74999995,0.0001536,2]
[351728682,1738768250685,-123.97471787,0.0001536,2]
[351728683,1738768250695,-282.09552643,0.00015595,2]
[351728684,1738768250705,-71.2497557,0.00015595,2]
[351728685,1738768250717,-905.0402443,0.00015595,2]
[351728686,1738768250727,-500.0,0.00015595,2]
[351728687,1738768250737,-500.0,0.00015595,2]
[351728688,1738768250747,-524.99329576,0.00015595,2]
[351728690,1738768298743,159.959,0.0001482,2]
[351728700,1738768582702,996.1972926,0.00014421,2]
[351728710,1738768808109,214.000367,0.00014307,2]
[351728711,1738768809586,780.2937418,0.00014307,2]
[351728713,1738768962938,24900.0,0.0001426,2]
[351728714,1738768981248,323.87144,0.00013973,2]
[351728730,1738769321543,1164.13124692,0.00015,2]
[351728732,1738769325748,301.999999,0.0002,120]
[351728759,1738769436230,-161.1330868,0.00015158,2]
[351728760,1738769436240,-165.92599277,0.00015159,2]
[351728761,1738769436250,-204.66564572,0.00015249,2]
[351728762,1738769436261,-300.0,0.00015256,2]
[351728763,1738769436270,-500.0,0.00015257,2]
[351728764,1738769436280,-1355.66867757,0.00015257,2]
[351728765,1738769436291,-4225.30132243,0.00015257,2]
[351728766,1738769436300,-2279.78,0.00015257,2]
[351728767,1738769436310,-501.60656654,0.00015257,2]
[351728768,1738769436322,-835.63,0.00015257,2]
[351728769,1738769436331,-500.0,0.00015257,2]
[351728770,1738769436341,-559.96,0.00015257,2]
[351728771,1738769436350,-1181.75,0.00015257,2]
[351728772,1738769436359,-500.0,0.00015257,2]
[351728773,1738769436369,-500.0,0.00015257,2]
[351728774,1738769436378,-165.92599276,0.00015258,2]
[351728775,1738769436387,-3448.51,0.00015258,2]
[351728776,1738769436396,-500.0,0.00015258,2]
[351728777,1738769436406,-753.85,0.00015258,2]
[351728778,1738769436415,-500.0,0.00015258,2]
[351728779,1738769436424,-800.97,0.00015258,2]
[351728780,1738769436434,-9883.55,0.00015258,2]
[351728781,1738769436443,-500.0,0.00015258,2]
[351728783,1738769436452,-873.05,0.00015258,2]
[351728784,1738769436462,-602.05,0.00015258,2]
[351728786,1738769436471,-16994.88,0.00015258,2]
[351728787,1738769436480,-500.0,0.00015258,2]
[351728788,1738769436489,-6878.13,0.00015258,2]
[351728789,1738769436498,-500.0,0.00015258,2]
[351728791,1738769436507,-500.0,0.00015258,2]
[351728793,1738769436516,-3758.05,0.00015258,2]
[351728795,1738769436525,-8332.1,0.00015258,2]
[351728797,1738769436534,-1412.7,0.00015258,2]
[351728799,1738769436544,-2757.61844132,0.00015258,2]
[351728805,1738769438143,-500.0,0.00015257,2]
[351728806,1738769438154,-98.73155868,0.00015258,2]
[351728807,1738769438163,-500.0,0.00015258,2]
[351728808,1738769438173,-500.0,0.00015258,2]
[351728809,1738769438184,-599.62,0.00015258,2]
[351728810,1738769438194,-500.76561699,0.00015258,2]
[351728811,1738769438204,-1269.45,0.00015258,2]
[351728812,1738769438214,-1187.26,0.00015258,2]
[351728813,1738769438227,-500.0,0.00015258,2]
[351728814,1738769438237,-500.0,0.00015258,2]
[351728815,1738769438247,-500.0,0.00015258,2]
[351728816,1738769438257,-500.0,0.00015258,2]
[351728817,1738769438267,-972.84,0.00015258,2]
[351728818,1738769438276,-3093.57,0.00015258,2]
[351728819,1738769438286,-500.0,0.00015258,2]
[351728820,1738769438297,-34718.918014,0.00015258,2]
[351728821,1738769438307,-1130.28,0.00015259,2]
[351728822,1738769438316,-500.0,0.00015259,2]
[351728823,1738769438329,-500.0,0.00015259,2]
[351728824,1738769438338,-3376.91,0.00015259,2]
[351728825,1738769438347,-589.09,0.00015259,2]
[351728826,1738769438357,-2085.75,0.00015259,2]
[351728827,1738769438367,-500.0,0.00015259,2]
[351728828,1738769438377,-509.69,0.00015259,2]
[351728829,1738769438387,-549.69,0.00015259,2]
[351728830,1738769438396,-1565.19,0.00015259,2]
[351728831,1738769438406,-500.0,0.00015259,2]
[351728832,1738769438415,-1469.15,0.00015259,2]
[351728833,1738769438425,-1015.69,0.00015259,2]
[351728834,1738769438435,-500.0,0.00015259,2]
[351728835,1738769438445,-500.0,0.00015259,2]
[351728836,1738769438455,-2487.31,0.00015259,2]
[351728837,1738769438466,-1208.65,0.00015259,2]
[351728838,1738769438476,-500.0,0.00015259,2]
[351728839,1738769438485,-500.0,0.00015259,2]
[351728840,1738769438495,-500.0,0.00015259,2]
[351728841,1738769438506,-500.0,0.00015259,2]
[351728842,1738769438515,-500.0,0.00015259,2]
[351728843,1738769438525,-637.13,0.00015259,2]
[351728844,1738769438534,-500.0,0.00015259,2]
[351728845,1738769438544,-1747.9,0.00015259,2]
[351728846,1738769438554,-500.0,0.00015259,2]
[351728847,1738769438564,-1139.84,0.00015259,2]
[351728848,1738769438575,-1579.61,0.00015259,2]
[351728849,1738769438584,-500.0,0.00015259,2]
[351728850,1738769438594,-819.99,0.00015259,2]
[351728851,1738769438603,-990.37,0.00015259,2]
[351728852,1738769438614,-500.0,0.00015259,2]
[351728853,1738769438625,-500.0,0.00015259,2]
[351728854,1738769438635,-1557.56,0.00015259,2]
[351728855,1738769438645,-651.36,0.00015259,2]
[351728856,1738769438656,-500.0,0.00015259,2]
[351728857,1738769438666,-500.0,0.00015259,2]
[351728858,1738769438678,-1062.71,0.00015259,2]
[351728859,1738769438688,-500.0,0.00015259,2]
[351728860,1738769438697,-2026.2,0.00015259,2]
[351728861,1738769438710,-500.0,0.00015259,2]
[351728862,1738769438720,-500.0,0.00015259,2]
[351728863,1738769438729,-500.0,0.00015259,2]
[351728864,1738769438740,-789.65,0.00015259,2]
[351728865,1738769438749,-6581.25,0.00015259,2]
[351728866,1738769438760,-500.0,0.00015259,2]
[351728867,1738769438770,-3409.96,0.00015259,2]
[351728868,1738769438779,-2959.35,0.00015259,2]
[351728869,1738769438789,-12392.47,0.00015259,2]
[351728870,1738769438799,-500.0,0.00015259,2]
[351728871,1738769438808,-500.0,0.00015259,2]
[351728872,1738769438818,-606.37,0.00015259,2]
[351728873,1738769438830,-600.19,0.00015259,2]
[351728874,1738769438841,-500.0,0.00015259,2]
[351728875,1738769438851,-500.0,0.00015259,2]
[351728876,1738769438862,-586.22,0.00015259,2]
[351728877,1738769438873,-1380.86,0.00015259,2]
[351728878,1738769438883,-500.0,0.00015259,2]
[351728879,1738769438893,-500.0,0.00015259,2]
[351728880,1738769438903,-628.84,0.00015259,2]
[351728881,1738769438912,-500.0,0.00015259,2]
[351728882,1738769438923,-2948.67,0.00015259,2]
[351728883,1738769438932,-500.0,0.00015259,2]
[351728884,1738769438943,-500.0,0.00015259,2]
[351728885,1738769438952,-500.0,0.00015259,2]
[351728886,1738769438962,-500.0,0.00015259,2]
[351728887,1738769438973,-9036.09,0.00015259,2]
[351728888,1738769438983,-500.0,0.00015259,2]
[351728889,1738769438993,-4529.89,0.00015259,2]
[351728890,1738769439004,-1393.41,0.00015259,2]
[351728891,1738769439014,-1148.42,0.00015259,2]
[351728892,1738769439024,-3111.98,0.00015259,2]
[351728893,1738769439033,-500.0,0.00015259,2]
[351728894,1738769439043,-500.0,0.00015259,2]
[351728895,1738769439053,-500.0,0.00015259,2]
[351728896,1738769439063,-500.0,0.00015259,2]
[351728897,1738769439074,-500.0,0.00015259,2]
[351728898,1738769439084,-171.39519698,0.00015259,2]
[351728899,1738769439095,-463.14153734,0.00015259,2]
[351728900,1738769439104,-500.0,0.00015259,2]
[351728901,1738769439114,-709.44,0.00015259,2]
[351728902,1738769439123,-500.0,0.00015259,2]
[351728903,1738769439133,-701.88,0.00015259,2]
[351728904,1738769439144,-500.0,0.00015259,2]
[351728905,1738769439154,-2936.92,0.00015259,2]
[351728906,1738769439165,-500.0,0.00015259,2]
[351728907,1738769439175,-500.0,0.00015259,2]
[351728908,1738769439184,-1394.99,0.00015259,2]
[351728909,1738769439194,-500.0,0.00015259,2]
[351728910,1738769439204,-500.0,0.00015259,2]
[351728911,1738769439213,-4117.99,0.00015259,2]
[351728912,1738769439223,-1708.2,0.00015259,2]
[351728913,1738769439233,-500.0,0.00015259,2]
[351728914,1738769439242,-500.0,0.00015259,2]
[351728915,1738769439252,-500.0,0.00015259,2]
[351728916,1738769439262,-982.98,0.00015259,2]
[351728917,1738769439271,-500.0,0.00015259,2]
[351728918,1738769439282,-500.0,0.00015259,2]
[351728919,1738769439293,-1030.12,0.00015259,2]
[351728920,1738769439303,-500.0,0.00015259,2]
[351728921,1738769439315,-500.0,0.00015259,2]
[351728922,1738769439329,-514.94,0.00015259,2]
[351728923,1738769439339,-653.94,0.00015259,2]
[351728924,1738769439348,-500.0,0.00015259,2]
[351728925,1738769439357,-500.0,0.00015259,2]
[351728926,1738769439367,-7930.25,0.00015259,2]
[351728927,1738769439377,-615.47,0.00015259,2]
[351728928,1738769439387,-500.0,0.00015259,2]
[351728929,1738769439397,-500.0,0.00015259,2]
[351728930,1738769439406,-1585.42,0.00015259,2]
[351728931,1738769439416,-500.0,0.00015259,2]
[351728932,1738769439426,-1535.53,0.00015259,2]
[351728933,1738769439646,-500.0,0.00015259,2]
[351728934,1738769439656,-605.66,0.00015259,2]
[351728935,1738769439667,-500.0,0.00015259,2]
[351728936,1738769439676,-500.0,0.00015259,2]
[351728937,1738769439686,-2969.57,0.00015259,2]
[351728938,1738769439695,-500.0,0.00015259,2]
[351728939,1738769439707,-500.0,0.00015259,2]
[351728940,1738769439717,-657.43,0.00015259,2]
[351728941,1738769439726,-1195.4,0.00015259,2]
[351728942,1738769439735,-500.0,0.00015259,2]
[351728943,1738769439745,-500.0,0.00015259,2]
[351728944,1738769439754,-500.0,0.00015259,2]
[351728945,1738769439763,-500.0,0.00015259,2]
[351728946,1738769439773,-500.0,0.00015259,2]
[351728947,1738769439783,-500.0,0.00015259,2]
[351728948,1738769439793,-231.59190631,0.00015259,2]
[351728949,1738769439803,-500.0,0.00015259,2]
[351728950,1738769439812,-500.0,0.00015259,2]
[351728951,1738769439822,-1750.73,0.00015259,2]
[351728952,1738769439833,-536.54576892,0.00015259,2]
[351728953,1738769439843,-500.0,0.00015259,2]
[351728954,1738769439853,-500.0,0.0001526,2]
[351728955,1738769439863,-500.0,0.0001526,2]
[351728957,1738769439873,-500.0,0.0001526,2]
[351728958,1738769439882,-500.0,0.0001526,2]
[351728961,1738769439892,-500.0,0.0001526,2]
[351728962,1738769439901,-500.0,0.0001526,2]
[351728964,1738769439911,-500.0,0.0001526,2]
[351728967,1738769439921,-500.0,0.0001526,2]
[351728969,1738769439931,-500.0,0.0001526,2]
[351728970,1738769439941,-500.0,0.0001526,2]
[351728972,1738769439951,-500.0,0.0001526,2]
[351728974,1738769439961,-500.0,0.0001526,2]
[351728976,1738769439970,-623.31365207,0.0001526,2]
[351728978,1738769439980,-505.71,0.0001526,2]
[351728981,1738769439990,-565.46,0.0001526,2]
[351728983,1738769439999,-500.0,0.0001526,2]
[351728984,1738769440008,-500.0,0.0001526,2]
[351728987,1738769440018,-500.0,0.0001526,2]
[351728989,1738769440029,-500.0,0.0001526,2]
[351728991,1738769440040,-500.0,0.0001526,2]
[351728993,1738769440050,-500.0,0.0001526,2]
[351728994,1738769440060,-500.0,0.0001526,2]
[351728997,1738769440070,-500.0,0.0001526,2]
[351728999,1738769440081,-500.0,0.0001526,2]
[351729001,1738769440090,-500.0,0.0001526,2]
[351729003,1738769440100,-500.0,0.0001526,2]
[351729005,1738769440110,-500.0,0.0001526,2]
[351729007,1738769440119,-500.0,0.0001526,2]
[351729009,1738769440129,-500.0,0.0001526,2]
[351729011,1738769440139,-274.96370318,0.0001526,2]
[351729013,1738769440149,-500.0,0.0001526,2]
[351729015,1738769440158,-518.46,0.0001526,2]
[351729017,1738769440168,-500.0,0.0001526,2]
[351729019,1738769440177,-1849.83,0.0001526,2]
[351729021,1738769440187,-500.0,0.0001526,2]
[351729023,1738769440196,-500.0,0.0001526,2]
[351729025,1738769440206,-732.65,0.0001526,2]
[351729027,1738769440215,-500.0,0.0001526,2]
[351729029,1738769440224,-500.0,0.0001526,2]
[351729031,1738769440234,-500.0,0.0001526,2]
[351729033,1738769440244,-500.0,0.0001526,2]
[351729035,1738769440253,-500.0,0.0001526,2]
[351729037,1738769440263,-500.0,0.0001526,2]
[351729038,1738769440273,-500.0,0.0001526,2]
[351729039,1738769440282,-500.0,0.0001526,2]
[351729040,1738769440291,-500.0,0.0001526,2]
[351729041,1738769440301,-500.0,0.0001526,2]
[351729042,1738769440310,-721.3,0.0001526,2]
[351729043,1738769440320,-902.28,0.0001526,2]
[351729044,1738769440331,-500.0,0.0001526,2]
[351729045,1738769440340,-500.0,0.0001526,2]
[351729046,1738769440350,-519.99234604,0.0001526,2]
[351729047,1738769440359,-500.0,0.0001526,2]
[351729048,1738769440368,-500.0,0.0001526,2]
[351729049,1738769440377,-504.73756369,0.0001526,2]
[351729050,1738769440387,-665.77,0.0001526,2]
[351729051,1738769440396,-500.0,0.0001526,2]
[351729052,1738769440405,-500.0,0.0001526,2]
[351729053,1738769440414,-731.7,0.0001526,2]
[351729054,1738769440423,-549.23,0.0001526,2]
[351729055,1738769440432,-1195.05,0.0001526,2]
[351729056,1738769440442,-317.61058948,0.0001526,2]
[351729057,1738769440451,-385.87795808,0.0001526,2]
[351729058,1738769440460,-789.68,0.0001526,2]
[351729059,1738769440469,-500.0,0.0001526,2]
[351729060,1738769440479,-500.0,0.0001526,2]
[351729062,1738769440488,-500.0,0.0001526,2]
[351729063,1738769440497,-500.0,0.0001526,2]
[351729065,1738769440506,-170.91706599,0.0001526,2]
[351729067,1738769440516,-500.0,0.0001526,2]
[351729069,1738769440525,-500.0,0.0001526,2]
[351729071,1738769440535,-500.0,0.0001526,2]
[351729073,1738769440546,-500.0,0.0001526,2]
[351729075,1738769440556,-500.0,0.0001526,2]
[351729077,1738769440566,-803.59,0.0001526,2]
[351729080,1738769440577,-500.0,0.0001526,2]
[351729081,1738769440587,-500.0,0.0001526,2]
[351729083,1738769440601,-500.0,0.0001526,2]
[351729085,1738769440611,-500.0,0.0001526,2]
[351729088,1738769440623,-500.0,0.0001526,2]
[351729090,1738769440638,-500.0,0.0001526,2]
[351729092,1738769440648,-622.45327861,0.0001526,2]
[351729093,1738769440660,-574.96233317,0.0001526,2]
[351729096,1738769440671,-500.0,0.0001526,2]
[351729097,1738769440680,-500.0,0.0001526,2]
[351729099,1738769440690,-500.0,0.0001526,2]
[351729101,1738769440699,-500.0,0.0001526,2]
[351729104,1738769440711,-500.0,0.0001526,2]
[351729106,1738769440723,-500.0,0.0001526,2]
[351729108,1738769440732,-500.0,0.0001526,2]
[351729110,1738769440743,-500.0,0.0001526,2]
[351729112,1738769440752,-500.0,0.0001526,2]
[351729114,1738769440761,-500.0,0.0001526,2]
[351729116,1738769440771,-500.0,0.0001526,2]
[351729118,1738769440781,-355.15705194,0.0001526,2]
[351729120,1738769440791,-500.0,0.0001526,2]
[351729122,1738769440800,-619.05,0.0001526,2]
[351729124,1738769440809,-500.0,0.0001526,2]
[351729126,1738769440818,-500.0,0.0001526,2]
[351729128,1738769440830,-500.0,0.0001526,2]
[351729130,1738769440840,-500.0,0.0001526,2]
[351729132,1738769440849,-500.0,0.0001526,2]
[351729134,1738769440858,-504.12616618,0.0001526,2]
[351729136,1738769440868,-500.0,0.0001526,2]
[351729138,1738769440878,-506.01,0.0001526,2]
[351729140,1738769440888,-500.0,0.0001526,2]
[351729141,1738769440898,-1033.24,0.0001526,2]
[351729143,1738769440908,-500.0,0.0001526,2]
[351729146,1738769440918,-500.0,0.0001526,2]
[351729147,1738769440928,-500.0,0.0001526,2]
[351729149,1738769440938,-500.0,0.0001526,2]
[351729152,1738769440948,-500.0,0.0001526,2]
[351729154,1738769440958,-600.57,0.0001526,2]
[351729156,1738769440968,-500.0,0.0001526,2]
[351729158,1738769440978,-500.0,0.0001526,2]
[351729160,1738769440987,-500.0,0.0001526,2]
[351729162,1738769440997,-500.0,0.0001526,2]
[351729163,1738769441007,-500.0,0.0001526,2]
[351729166,1738769441016,-500.0,0.0001526,2]
[351729168,1738769441026,-500.0,0.0001526,2]
[351729170,1738769441035,-500.0,0.0001526,2]
[351729172,1738769441045,-500.0,0.0001526,2]
[351729174,1738769441055,-500.0,0.0001526,2]
[351729176,1738769441064,-169.82424985,0.0001526,2]
[351729178,1738769441074,-500.0,0.0001526,2]
[351729179,1738769441087,-500.0,0.0001526,2]
[351729181,1738769441097,-808.08,0.0001526,2]
[351729183,1738769441107,-425.2021342,0.0001526,2]
[351729186,1738769441116,-500.0,0.0001526,2]
[351729188,1738769441126,-500.0,0.0001526,2]
[351729190,1738769441135,-500.0,0.0001526,2]
[351729192,1738769441144,-500.0,0.0001526,2]
[351729194,1738769441154,-500.0,0.0001526,2]
[351729195,1738769441163,-768.97,0.0001526,2]
[351729197,1738769441173,-500.0,0.0001526,2]
[351729200,1738769441182,-500.0,0.0001526,2]
[351729201,1738769441192,-500.0,0.0001526,2]
[351729204,1738769441202,-559.41917771,0.0001526,2]
[351729206,1738769441211,-500.0,0.0001526,2]
[351729208,1738769441221,-500.0,0.0001526,2]
[351729209,1738769441231,-500.0,0.0001526,2]
[351729211,1738769441240,-500.0,0.0001526,2]
[351729213,1738769441249,-500.0,0.0001526,2]
[351729215,1738769441258,-500.0,0.0001526,2]
[351729217,1738769441268,-500.0,0.0001526,2]
[351729220,1738769441277,-500.0,0.0001526,2]
[351729222,1738769441286,-500.0,0.0001526,2]
[351729224,1738769441296,-500.0,0.0001526,2]
[351729225,1738769441305,-500.0,0.0001526,2]
[351729227,1738769441314,-1237.06,0.0001526,2]
[351729230,1738769441324,-500.0,0.0001526,2]
[351729232,1738769441335,-500.0,0.0001526,2]
[351729233,1738769441344,-500.0,0.0001526,2]
[351729236,1738769441354,-500.0,0.0001526,2]
[351729237,1738769441363,-500.0,0.0001526,2]
[351729239,1738769441372,-500.0,0.0001526,2]
[351729241,1738769441382,-500.0,0.0001526,2]
[351729243,1738769441391,-500.0,0.0001526,2]
[351729245,1738769441400,-535.4,0.0001526,2]
[351729247,1738769441409,-500.0,0.0001526,2]
[351729249,1738769441419,-500.0,0.0001526,2]
[351729251,1738769441428,-500.0,0.0001526,2]
[351729253,1738769441438,-500.0,0.0001526,2]
[351729256,1738769441448,-500.0,0.0001526,2]
[351729258,1738769441457,-500.0,0.0001526,2]
[351729260,1738769441467,-500.0,0.0001526,2]
[351729262,1738769441476,-671.43,0.0001526,2]
[351729264,1738769441486,-500.0,0.0001526,2]
[351729266,1738769441495,-500.0,0.0001526,2]
[351729267,1738769441504,-500.0,0.0001526,2]
[351729270,1738769441514,-500.0,0.0001526,2]
[351729271,1738769441523,-1282.87,0.0001526,2]
[351729273,1738769441533,-330.24984875,0.0001526,2]
[351729275,1738769441543,-500.0,0.0001526,2]
[351729278,1738769441552,-876.7,0.0001526,2]
[351729280,1738769441562,-500.0,0.0001526,2]
[351729282,1738769441572,-500.0,0.0001526,2]
[351729284,1738769441584,-402.65032782,0.0001526,2]
[351729285,1738769441595,-1610.13,0.0001526,2]
[351729288,1738769441604,-500.0,0.0001526,2]
[351729289,1738769441615,-500.0,0.0001526,2]
[351729291,1738769441628,-770.55,0.0001526,2]
[351729293,1738769441641,-446.62244191,0.0001526,2]
[351729295,1738769441655,-657.41,0.0001526,2]
[351729297,1738769441665,-543.26,0.0001526,2]
[351729299,1738769441674,-602.21471939,0.0001526,2]